[Event "*** SCC Grand Prix: Titled Tuesday Blitz"]
[Site "Chess.com"]
[Date "2020.06.09"]
[Round "5"]
[White "luizwas"]
[Black "smshk35"]
[Result "0-1"]
[WhiteElo "1808"]
[BlackElo "2323"]
[TimeControl "180+1"]
[EndTime "9:55:47 PDT"]
[Termination "smshk35 won by checkmate"]

1. e4 {[%clk 0:03:00.9]} 1... c5 {[%clk 0:02:52.8]} 2. Nf3 {[%clk 0:03:00.4]}
2... e6 {[%clk 0:02:52.3]} 3. d4 {[%clk 0:03:00.8]} 3... cxd4 {[%clk 0:02:53.2]}
4. Nxd4 {[%clk 0:03:01.1]} 4... a6 {[%clk 0:02:52.4]} 5. Nc3 {[%clk 0:03:01.4]}
5... b5 {[%clk 0:02:50.4]} 6. a3 {[%clk 0:02:57.6]} 6... Qc7 {[%clk 0:02:49.2]}
7. g3 {[%clk 0:02:54.7]} 7... Bc5 {[%clk 0:02:46.1]} 8. Nb3 {[%clk 0:02:52]}
8... Bb6 {[%clk 0:02:42.5]} 9. Bg2 {[%clk 0:02:52.2]} 9... Bb7 {[%clk
0:02:42.2]} 10. O-O {[%clk 0:02:50.6]} 10... Ne7 {[%clk 0:02:41.3]} 11. Kh1
{[%clk 0:02:34.4]} 11... Nbc6 {[%clk 0:02:36.4]} 12. f4 {[%clk 0:02:33.9]} 12...
h5 {[%clk 0:02:36.5]} 13. Qf3 {[%clk 0:02:29.5]} 13... h4 {[%clk 0:02:34]} 14.
g4 {[%clk 0:02:27.5]} 14... Nd4 {[%clk 0:02:30.1]} 15. Nxd4 {[%clk 0:02:26.5]}
15... Bxd4 {[%clk 0:02:31]} 16. Be3 {[%clk 0:02:22.8]} 16... Bxc3 {[%clk
0:02:28.5]} 17. bxc3 {[%clk 0:02:18.4]} 17... Qxc3 {[%clk 0:02:26.1]} 18. Qe2
{[%clk 0:02:07.4]} 18... h3 {[%clk 0:02:23.5]} 19. Bf3 {[%clk 0:02:06.1]} 19...
Rc8 {[%clk 0:02:20.9]} 20. Ra2 {[%clk 0:01:59.6]} 20... Qc4 {[%clk 0:02:18.1]}
21. Qxc4 {[%clk 0:01:58.2]} 21... Rxc4 {[%clk 0:02:19]} 22. f5 {[%clk
0:01:52.7]} 22... Bxe4 {[%clk 0:02:16.7]} 23. Bxe4 {[%clk 0:01:43.3]} 23... Rxe4
{[%clk 0:02:17.6]} 24. Bg5 {[%clk 0:01:40.7]} 24... exf5 {[%clk 0:02:12]} 25.
gxf5 {[%clk 0:01:39.2]} 25... Nxf5 {[%clk 0:02:11.9]} 26. Raa1 {[%clk
0:01:36.4]} 26... g6 {[%clk 0:02:11.3]} 27. Rad1 {[%clk 0:01:20.8]} 27... Rh5
{[%clk 0:02:04]} 28. Bf4 {[%clk 0:01:20.7]} 28... Rh4 {[%clk 0:01:56.5]} 29. Bc7
{[%clk 0:01:17.4]} 29... Rhg4 {[%clk 0:01:55.2]} 30. Rde1 {[%clk 0:00:46.9]}
30... Ne3 {[%clk 0:01:47.7]} 31. Rf3 {[%clk 0:00:39.9]} 31... Nxc2 {[%clk
0:01:40]} 32. Rc1 {[%clk 0:00:37]} 32... Rh4 {[%clk 0:01:29.1]} 33. Kg1 {[%clk
0:00:31.7]} 33... Re2 {[%clk 0:01:26.4]} 34. Bg3 {[%clk 0:00:26.6]} 34... Rd4
{[%clk 0:01:22.3]} 35. Rc3 {[%clk 0:00:21.5]} 35... Rdd2 {[%clk 0:01:18]} 36.
Rc8+ {[%clk 0:00:13.4]} 36... Ke7 {[%clk 0:01:17]} 37. Bh4+ {[%clk 0:00:13.4]}
37... f6 {[%clk 0:01:16.8]} 38. Bg3 {[%clk 0:00:10]} 38... Rg2+ {[%clk 0:01:16]}
39. Kf1 {[%clk 0:00:09.9]} 39... Ne3+ {[%clk 0:01:14.9]} 40. Ke1 {[%clk
0:00:05.6]} 40... Rde2# {[%clk 0:01:15.8]} 0-1

[Event "*** SCC Grand Prix: Titled Tuesday Blitz"]
[Site "Chess.com"]
[Date "2020.06.09"]
[Round "5"]
[White "Boudicca64"]
[Black "GuuBol"]
[Result "0-1"]
[WhiteElo "1828"]
[BlackElo "2226"]
[TimeControl "180+1"]
[EndTime "9:55:47 PDT"]
[Termination "GuuBol won by resignation"]

1. e4 {[%clk 0:03:00.9]} 1... c5 {[%clk 0:02:54]} 2. g3 {[%clk 0:02:59.3]} 2...
Nc6 {[%clk 0:02:52.2]} 3. Bg2 {[%clk 0:02:58.6]} 3... g6 {[%clk 0:02:52.6]} 4.
Ne2 {[%clk 0:02:58.1]} 4... Bg7 {[%clk 0:02:53.1]} 5. c3 {[%clk 0:02:56.4]} 5...
e6 {[%clk 0:02:50.9]} 6. O-O {[%clk 0:02:55.1]} 6... Nge7 {[%clk 0:02:50.7]} 7.
d4 {[%clk 0:02:50.2]} 7... cxd4 {[%clk 0:02:49.1]} 8. cxd4 {[%clk 0:02:49.2]}
8... d5 {[%clk 0:02:47.9]} 9. e5 {[%clk 0:02:43.3]} 9... O-O {[%clk 0:02:46.8]}
10. Nbc3 {[%clk 0:02:41.8]} 10... Bd7 {[%clk 0:02:38.7]} 11. Be3 {[%clk
0:02:35.6]} 11... a6 {[%clk 0:02:36.7]} 12. Rc1 {[%clk 0:02:28.3]} 12... b5
{[%clk 0:02:36.4]} 13. a3 {[%clk 0:02:22]} 13... Na5 {[%clk 0:02:25.5]} 14. b3
{[%clk 0:02:15.7]} 14... Rc8 {[%clk 0:02:18.7]} 15. f4 {[%clk 0:02:08.5]} 15...
Nf5 {[%clk 0:02:16]} 16. Bf2 {[%clk 0:02:06.5]} 16... h5 {[%clk 0:02:16]} 17. h3
{[%clk 0:02:04]} 17... Qe7 {[%clk 0:02:04.5]} 18. g4 {[%clk 0:02:02.2]} 18...
Nh6 {[%clk 0:01:57]} 19. Bf3 {[%clk 0:01:55.6]} 19... Qxa3 {[%clk 0:01:47.7]}
20. gxh5 {[%clk 0:01:37]} 20... Qxb3 {[%clk 0:01:43.9]} 21. hxg6 {[%clk
0:01:30.8]} 21... fxg6 {[%clk 0:01:43.1]} 22. Qd3 {[%clk 0:01:22.7]} 22... Nf5
{[%clk 0:01:38]} 23. Kh2 {[%clk 0:01:14]} 23... Qc4 {[%clk 0:01:35.1]} 24. Qxc4
{[%clk 0:01:10.4]} 24... Nxc4 {[%clk 0:01:33.5]} 25. Rg1 {[%clk 0:01:08]} 25...
Be8 {[%clk 0:01:29.9]} 26. Ng3 {[%clk 0:00:43]} 26... b4 {[%clk 0:01:16]} 27.
Nce2 {[%clk 0:00:36.5]} 27... Nh4 {[%clk 0:01:08.3]} 28. Bh1 {[%clk 0:00:32]}
28... Kh7 {[%clk 0:01:07.5]} 29. Ne4 {[%clk 0:00:23]} 29... dxe4 {[%clk
0:01:03.3]} 30. Bxe4 {[%clk 0:00:20.3]} 30... Nf5 {[%clk 0:01:01.2]} 31. Bd3
{[%clk 0:00:16.7]} 31... Bb5 {[%clk 0:00:59.5]} 32. d5 {[%clk 0:00:09.8]} 32...
exd5 {[%clk 0:00:58.6]} 0-1

[Event "*** SCC Grand Prix: Titled Tuesday Blitz"]
[Site "Chess.com"]
[Date "2020.06.09"]
[Round "5"]
[White "Julianos82"]
[Black "thedjoker98"]
[Result "0-1"]
[WhiteElo "2381"]
[BlackElo "2545"]
[TimeControl "180+1"]
[EndTime "9:55:48 PDT"]
[Termination "thedjoker98 won by resignation"]

1. d4 {[%clk 0:03:00.9]} 1... d5 {[%clk 0:03:00]} 2. Bf4 {[%clk 0:02:59.8]} 2...
Nf6 {[%clk 0:02:59.8]} 3. e3 {[%clk 0:02:58.9]} 3... e6 {[%clk 0:03:00]} 4. Nd2
{[%clk 0:02:57.1]} 4... c5 {[%clk 0:03:00.5]} 5. c3 {[%clk 0:02:56.7]} 5... Nc6
{[%clk 0:03:00]} 6. Ngf3 {[%clk 0:02:53]} 6... Bd6 {[%clk 0:03:00]} 7. Bg3
{[%clk 0:02:51.6]} 7... O-O {[%clk 0:02:58.8]} 8. Bd3 {[%clk 0:02:51]} 8... b6
{[%clk 0:02:59.3]} 9. Ne5 {[%clk 0:02:50]} 9... Bb7 {[%clk 0:02:57.3]} 10. O-O
{[%clk 0:02:39.7]} 10... Ne7 {[%clk 0:02:54.9]} 11. Qf3 {[%clk 0:02:22.8]} 11...
Nf5 {[%clk 0:02:48.5]} 12. Bxf5 {[%clk 0:02:08.1]} 12... exf5 {[%clk 0:02:49.4]}
13. Qxf5 {[%clk 0:02:06.9]} 13... Ne4 {[%clk 0:02:48.4]} 14. Nxe4 {[%clk
0:02:00.5]} 14... dxe4 {[%clk 0:02:49.3]} 15. Ng4 {[%clk 0:01:35.9]} 15... Bxg3
{[%clk 0:02:36.2]} 16. fxg3 {[%clk 0:01:36.8]} 16... cxd4 {[%clk 0:02:34.9]} 17.
cxd4 {[%clk 0:01:36.2]} 17... f6 {[%clk 0:02:33.9]} 18. Rac1 {[%clk 0:01:30.8]}
18... Qe7 {[%clk 0:02:33.6]} 19. Rc3 {[%clk 0:01:20.3]} 19... Rac8 {[%clk
0:02:32.4]} 20. Rfc1 {[%clk 0:01:19.7]} 20... Rxc3 {[%clk 0:02:32.6]} 21. Rxc3
{[%clk 0:01:20.5]} 21... Kh8 {[%clk 0:02:32.3]} 22. Qf4 {[%clk 0:01:19.5]} 22...
Rc8 {[%clk 0:02:30.1]} 23. h4 {[%clk 0:01:14.9]} 23... h5 {[%clk 0:02:19.3]} 24.
Nf2 {[%clk 0:01:08.8]} 24... Qb4 {[%clk 0:02:19.6]} 25. Rxc8+ {[%clk 0:01:05.5]}
25... Bxc8 {[%clk 0:02:20.5]} 26. Nxe4 {[%clk 0:01:04.7]} 26... Qxb2 {[%clk
0:02:19.1]} 27. Nxf6 {[%clk 0:00:58.8]} 27... Qc1+ {[%clk 0:02:17.1]} 28. Kh2
{[%clk 0:00:57.4]} 28... gxf6 {[%clk 0:02:17.6]} 29. Qxf6+ {[%clk 0:00:57.8]}
29... Kg8 {[%clk 0:02:15.3]} 30. e4 {[%clk 0:00:47.7]} 30... Qc7 {[%clk
0:02:11.9]} 31. Qg5+ {[%clk 0:00:44.5]} 31... Qg7 {[%clk 0:02:05.8]} 32. Qxh5
{[%clk 0:00:43.8]} 32... Bb7 {[%clk 0:02:03]} 33. d5 {[%clk 0:00:40.7]} 33...
Qf7 {[%clk 0:02:02]} 34. Qg5+ {[%clk 0:00:40]} 34... Kh7 {[%clk 0:02:00.2]} 35.
h5 {[%clk 0:00:36.8]} 35... a5 {[%clk 0:01:59.9]} 36. g4 {[%clk 0:00:33.3]}
36... b5 {[%clk 0:01:58.2]} 37. d6 {[%clk 0:00:18.2]} 37... Bxe4 {[%clk
0:01:48.9]} 38. Qxb5 {[%clk 0:00:18.1]} 38... Qf4+ {[%clk 0:01:49]} 39. Kh3
{[%clk 0:00:16.9]} 39... Qe3+ {[%clk 0:01:45.5]} 40. g3 {[%clk 0:00:15.9]} 40...
Bd3 {[%clk 0:01:25.8]} 41. Qd7+ {[%clk 0:00:15.3]} 41... Kh6 {[%clk 0:01:26.2]}
42. g5+ {[%clk 0:00:14.5]} 42... Qxg5 {[%clk 0:01:20.8]} 43. Qg4 {[%clk
0:00:11]} 43... Bf5 {[%clk 0:01:19.9]} 0-1

[Event "*** SCC Grand Prix: Titled Tuesday Blitz"]
[Site "Chess.com"]
[Date "2020.06.09"]
[Round "5"]
[White "Alexey_Spirin"]
[Black "gm_rashid"]
[Result "0-1"]
[WhiteElo "2044"]
[BlackElo "2357"]
[TimeControl "180+1"]
[EndTime "9:55:48 PDT"]
[Termination "gm_rashid won by resignation"]

1. e4 {[%clk 0:03:00.7]} 1... e5 {[%clk 0:02:58.9]} 2. Nf3 {[%clk 0:03:00.6]}
2... Nc6 {[%clk 0:02:58.5]} 3. Bc4 {[%clk 0:03:00.1]} 3... Bc5 {[%clk
0:02:55.2]} 4. O-O {[%clk 0:03:00.2]} 4... Nf6 {[%clk 0:02:54.3]} 5. d3 {[%clk
0:03:00.8]} 5... d6 {[%clk 0:02:53.9]} 6. c3 {[%clk 0:02:59.6]} 6... O-O {[%clk
0:02:47.6]} 7. Nbd2 {[%clk 0:02:59.5]} 7... a6 {[%clk 0:02:40.5]} 8. Bb3 {[%clk
0:02:59.3]} 8... Be6 {[%clk 0:02:33.3]} 9. Bc2 {[%clk 0:02:59.2]} 9... h6 {[%clk
0:02:31]} 10. Re1 {[%clk 0:02:59]} 10... Ng4 {[%clk 0:02:30.7]} 11. Re2 {[%clk
0:02:59.3]} 11... Bxf2+ {[%clk 0:02:30]} 12. Rxf2 {[%clk 0:02:59.4]} 12... Ne3
{[%clk 0:02:29.5]} 13. Qe2 {[%clk 0:02:56.6]} 13... Nxc2 {[%clk 0:02:29.1]} 14.
Rb1 {[%clk 0:02:53.1]} 14... Bxa2 {[%clk 0:02:29.5]} 15. g3 {[%clk 0:02:41.3]}
15... b5 {[%clk 0:02:16.7]} 16. b4 {[%clk 0:02:31.4]} 16... Bxb1 {[%clk
0:02:15.9]} 17. Nxb1 {[%clk 0:02:31.3]} 17... N2xb4 {[%clk 0:02:11.6]} 18. cxb4
{[%clk 0:02:31.6]} 18... a5 {[%clk 0:02:11.5]} 19. bxa5 {[%clk 0:02:28.2]} 19...
Rxa5 {[%clk 0:02:09.5]} 20. Kg2 {[%clk 0:02:25.6]} 20... b4 {[%clk 0:02:06.9]}
21. Nbd2 {[%clk 0:02:16.3]} 21... Ra2 {[%clk 0:02:03.4]} 22. Qd1 {[%clk
0:02:16.6]} 22... Qa8 {[%clk 0:01:54.7]} 23. Qb3 {[%clk 0:02:10.2]} 23... Qa4
{[%clk 0:01:41.1]} 24. Qxa4 {[%clk 0:02:05.8]} 24... Rxa4 {[%clk 0:01:40.1]} 25.
Nc4 {[%clk 0:01:59.1]} 25... Na5 {[%clk 0:01:38]} 26. Nfd2 {[%clk 0:01:54.5]}
26... Nxc4 {[%clk 0:01:31.4]} 27. Nxc4 {[%clk 0:01:54]} 27... b3 {[%clk
0:01:29]} 28. Rb2 {[%clk 0:01:51.1]} 28... Ra2 {[%clk 0:01:28.2]} 29. Kf3 {[%clk
0:01:46.8]} 29... Rxb2 {[%clk 0:01:22.3]} 30. Bxb2 {[%clk 0:01:45.9]} 30... f5
{[%clk 0:01:20.9]} 31. exf5 {[%clk 0:01:40.2]} 31... Rxf5+ {[%clk 0:01:19.7]}
32. Ke3 {[%clk 0:01:40.7]} 32... g5 {[%clk 0:01:16.8]} 33. Nd2 {[%clk
0:01:32.3]} 33... Rf8 {[%clk 0:01:16.1]} 34. Bc3 {[%clk 0:01:21.7]} 34... Rb8
{[%clk 0:01:14.1]} 35. Bb2 {[%clk 0:01:22.1]} 35... Kf7 {[%clk 0:01:09]} 36. Ke4
{[%clk 0:01:22.3]} 36... Ke6 {[%clk 0:01:08.5]} 37. g4 {[%clk 0:01:20]} 37...
d5+ {[%clk 0:01:05.8]} 38. Ke3 {[%clk 0:01:20.3]} 38... c5 {[%clk 0:01:03]} 39.
Nf3 {[%clk 0:01:12.9]} 39... d4+ {[%clk 0:00:58.4]} 40. Ke2 {[%clk 0:01:05.6]}
40... Kd5 {[%clk 0:00:57.6]} 41. Nd2 {[%clk 0:01:05.5]} 41... Ra8 {[%clk
0:00:55.3]} 42. Kf3 {[%clk 0:01:02]} 42... Ra2 {[%clk 0:00:52.2]} 43. Nc4 {[%clk
0:01:02.1]} 43... e4+ {[%clk 0:00:52.2]} 44. dxe4+ {[%clk 0:01:01.3]} 44... Kxc4
{[%clk 0:00:51.9]} 0-1

[Event "*** SCC Grand Prix: Titled Tuesday Blitz"]
[Site "Chess.com"]
[Date "2020.06.09"]
[Round "5"]
[White "Hrant_ChessMood"]
[Black "GigaQuparadze"]
[Result "1-0"]
[WhiteElo "3085"]
[BlackElo "2840"]
[TimeControl "180+1"]
[EndTime "9:55:49 PDT"]
[Termination "Hrant_ChessMood won by resignation"]

1. d4 {[%clk 0:03:00.9]} 1... Nf6 {[%clk 0:02:56.8]} 2. Nf3 {[%clk 0:03:00.9]}
2... e6 {[%clk 0:02:56.5]} 3. g3 {[%clk 0:03:01.1]} 3... c5 {[%clk 0:02:55.7]}
4. Bg2 {[%clk 0:02:57.5]} 4... b5 {[%clk 0:02:55.7]} 5. O-O {[%clk 0:02:50.8]}
5... Bb7 {[%clk 0:02:54.9]} 6. c3 {[%clk 0:02:44.3]} 6... Be7 {[%clk 0:02:54.2]}
7. Bg5 {[%clk 0:02:44]} 7... cxd4 {[%clk 0:02:47.1]} 8. cxd4 {[%clk 0:02:42.7]}
8... Nc6 {[%clk 0:02:41.5]} 9. Nc3 {[%clk 0:02:39.9]} 9... b4 {[%clk 0:02:39.3]}
10. Bxf6 {[%clk 0:02:36.7]} 10... gxf6 {[%clk 0:02:20.4]} 11. Ne4 {[%clk
0:02:35.1]} 11... O-O {[%clk 0:02:19.4]} 12. Rc1 {[%clk 0:02:33.2]} 12... Rc8
{[%clk 0:02:18.1]} 13. Nc5 {[%clk 0:02:25.3]} 13... Ba8 {[%clk 0:02:15.9]} 14.
Qd2 {[%clk 0:02:17.9]} 14... d6 {[%clk 0:02:09.9]} 15. Nd3 {[%clk 0:02:14.7]}
15... Qb6 {[%clk 0:02:07.6]} 16. Nf4 {[%clk 0:02:13.7]} 16... Kh8 {[%clk
0:01:42.5]} 17. d5 {[%clk 0:02:11.9]} 17... Na5 {[%clk 0:01:30.3]} 18. dxe6
{[%clk 0:02:01.4]} 18... Nc4 {[%clk 0:01:29.8]} 19. Qd4 {[%clk 0:01:44.7]} 19...
Bxf3 {[%clk 0:01:14.7]} 20. Rxc4 {[%clk 0:01:35.4]} 20... Bxg2 {[%clk
0:01:12.8]} 21. Kxg2 {[%clk 0:01:21]} 21... Qxd4 {[%clk 0:00:55]} 22. Rxd4
{[%clk 0:01:21]} 22... fxe6 {[%clk 0:00:55.3]} 23. Nxe6 {[%clk 0:01:20.8]} 23...
Rfe8 {[%clk 0:00:55.1]} 24. Rxb4 {[%clk 0:01:18.6]} 24... Rc2 {[%clk 0:00:53.1]}
25. Nd4 {[%clk 0:01:15.4]} 25... Rc7 {[%clk 0:00:53]} 26. Rd1 {[%clk 0:01:12.7]}
26... d5 {[%clk 0:00:52.3]} 27. Rb3 {[%clk 0:01:11.2]} 27... Rc4 {[%clk
0:00:48.1]} 28. e3 {[%clk 0:01:10.8]} 28... Bc5 {[%clk 0:00:45.4]} 29. Rbd3
{[%clk 0:01:10.8]} 29... Ra4 {[%clk 0:00:34.8]} 30. a3 {[%clk 0:01:09.3]} 30...
Rb8 {[%clk 0:00:32.9]} 31. R1d2 {[%clk 0:01:07.2]} 31... Bxd4 {[%clk 0:00:31.1]}
32. Rxd4 {[%clk 0:01:06.8]} 32... Rxd4 {[%clk 0:00:31]} 33. Rxd4 {[%clk
0:01:07.7]} 33... Rxb2 {[%clk 0:00:30.8]} 34. Rxd5 {[%clk 0:01:08]} 34... Rb7
{[%clk 0:00:26]} 35. Ra5 {[%clk 0:01:07.6]} 35... Kg7 {[%clk 0:00:26.2]} 36. g4
{[%clk 0:01:08.2]} 36... Kg6 {[%clk 0:00:26.2]} 37. h4 {[%clk 0:01:08.3]} 37...
Re7 {[%clk 0:00:24.4]} 38. Kg3 {[%clk 0:01:08]} 38... h6 {[%clk 0:00:24.4]} 39.
h5+ {[%clk 0:01:08.1]} 39... Kf7 {[%clk 0:00:24.3]} 40. Kf4 {[%clk 0:01:08.7]}
40... Rd7 {[%clk 0:00:24.5]} 41. e4 {[%clk 0:01:09]} 41... Ke6 {[%clk
0:00:22.9]} 42. Ra6+ {[%clk 0:01:08.9]} 42... Ke7 {[%clk 0:00:21.9]} 43. Kf5
{[%clk 0:01:09.4]} 43... Rd2 {[%clk 0:00:21.9]} 44. Rxa7+ {[%clk 0:01:09.4]} 1-0

[Event "*** SCC Grand Prix: Titled Tuesday Blitz"]
[Site "Chess.com"]
[Date "2020.06.09"]
[Round "5"]
[White "Bathory44"]
[Black "SaqoChess_Twitch"]
[Result "1-0"]
[WhiteElo "2589"]
[BlackElo "2418"]
[TimeControl "180+1"]
[EndTime "9:55:49 PDT"]
[Termination "Bathory44 won by resignation"]

1. e4 {[%clk 0:03:00.9]} 1... c5 {[%clk 0:02:58.6]} 2. c3 {[%clk 0:03:00.8]}
2... d5 {[%clk 0:02:58.1]} 3. exd5 {[%clk 0:03:01.1]} 3... Qxd5 {[%clk
0:02:58.7]} 4. d4 {[%clk 0:03:01.7]} 4... e6 {[%clk 0:02:56.4]} 5. Nf3 {[%clk
0:03:01.2]} 5... Nf6 {[%clk 0:02:54.9]} 6. Bd3 {[%clk 0:03:00.7]} 6... Nc6
{[%clk 0:02:54.8]} 7. Be3 {[%clk 0:03:00.4]} 7... cxd4 {[%clk 0:02:54.6]} 8.
cxd4 {[%clk 0:03:00.2]} 8... Be7 {[%clk 0:02:52]} 9. Nc3 {[%clk 0:02:58.6]} 9...
Qd6 {[%clk 0:02:52.3]} 10. a3 {[%clk 0:02:58.3]} 10... O-O {[%clk 0:02:51.6]}
11. O-O {[%clk 0:02:58.4]} 11... a6 {[%clk 0:02:52]} 12. Qe2 {[%clk 0:02:56.2]}
12... b5 {[%clk 0:02:51.6]} 13. Rad1 {[%clk 0:02:53.3]} 13... Bb7 {[%clk
0:02:51.5]} 14. h3 {[%clk 0:02:52.4]} 14... Rac8 {[%clk 0:02:48.9]} 15. Bb1
{[%clk 0:02:50.5]} 15... Rfd8 {[%clk 0:02:48]} 16. Rfe1 {[%clk 0:02:48.4]} 16...
Na5 {[%clk 0:02:47.3]} 17. Ne5 {[%clk 0:02:45.8]} 17... Nc4 {[%clk 0:02:45.5]}
18. Bf4 {[%clk 0:02:39.7]} 18... Nxe5 {[%clk 0:02:38.8]} 19. dxe5 {[%clk
0:02:26.4]} 19... Qc6 {[%clk 0:02:38.8]} 20. f3 {[%clk 0:01:56.4]} 20... Nd5
{[%clk 0:02:29]} 21. Nxd5 {[%clk 0:01:51]} 21... exd5 {[%clk 0:01:57.3]} 22. Bf5
{[%clk 0:01:51.1]} 22... Ra8 {[%clk 0:01:41.8]} 23. e6 {[%clk 0:01:51.1]} 23...
fxe6 {[%clk 0:01:34.8]} 24. Bxe6+ {[%clk 0:01:45.5]} 24... Kh8 {[%clk
0:01:34.7]} 25. Kh1 {[%clk 0:01:36.1]} 25... Bf6 {[%clk 0:01:33.1]} 26. Rc1
{[%clk 0:01:33.9]} 26... Qe8 {[%clk 0:01:25.6]} 27. Rc7 {[%clk 0:01:33.5]} 27...
Bc8 {[%clk 0:01:22.8]} 28. Bxd5 {[%clk 0:01:29.7]} 28... Qxe2 {[%clk 0:00:40.7]}
29. Rxe2 {[%clk 0:01:30.6]} 29... g5 {[%clk 0:00:34.5]} 30. Bg3 {[%clk
0:01:14.2]} 30... Bf5 {[%clk 0:00:16]} 31. Bxa8 {[%clk 0:01:12.6]} 31... Rxa8
{[%clk 0:00:16.9]} 32. Rf7 {[%clk 0:01:12.5]} 32... Bd3 {[%clk 0:00:17]} 33. Rd2
{[%clk 0:01:12.2]} 33... Bd4 {[%clk 0:00:09.3]} 34. Rxd3 {[%clk 0:01:11.5]}
34... Bc5 {[%clk 0:00:09.9]} 35. Rdd7 {[%clk 0:01:08.4]} 35... Re8 {[%clk
0:00:09.8]} 36. Rxh7+ {[%clk 0:01:07.2]} 36... Kg8 {[%clk 0:00:10.3]} 37. Rdg7+
{[%clk 0:01:06.9]} 37... Kf8 {[%clk 0:00:10.8]} 38. Rh8+ {[%clk 0:01:07.5]}
38... Kxg7 {[%clk 0:00:10.7]} 39. Rxe8 {[%clk 0:01:08.4]} 1-0

[Event "*** SCC Grand Prix: Titled Tuesday Blitz"]
[Site "Chess.com"]
[Date "2020.06.09"]
[Round "5"]
[White "KobyKalavannan"]
[Black "GrigorGrigorov"]
[Result "0-1"]
[WhiteElo "2519"]
[BlackElo "2739"]
[TimeControl "180+1"]
[EndTime "9:55:50 PDT"]
[Termination "GrigorGrigorov won by resignation"]

1. d4 {[%clk 0:03:00.9]} 1... Nf6 {[%clk 0:02:59.4]} 2. c4 {[%clk 0:03:00.6]}
2... e6 {[%clk 0:02:59.7]} 3. g3 {[%clk 0:02:59]} 3... d5 {[%clk 0:02:57.6]} 4.
Bg2 {[%clk 0:02:59.4]} 4... dxc4 {[%clk 0:02:57.5]} 5. Qa4+ {[%clk 0:02:59.4]}
5... Nbd7 {[%clk 0:02:56.9]} 6. Nf3 {[%clk 0:02:58.2]} 6... a6 {[%clk
0:02:56.6]} 7. Qxc4 {[%clk 0:02:58.2]} 7... b5 {[%clk 0:02:55.7]} 8. Qc6 {[%clk
0:02:57.8]} 8... Rb8 {[%clk 0:02:54.9]} 9. Bf4 {[%clk 0:02:55.6]} 9... Bb7
{[%clk 0:02:55.1]} 10. Qc2 {[%clk 0:02:50.6]} 10... Rc8 {[%clk 0:02:54.6]} 11.
O-O {[%clk 0:02:49.2]} 11... c5 {[%clk 0:02:54.3]} 12. dxc5 {[%clk 0:02:27.8]}
12... Bxc5 {[%clk 0:02:53.5]} 13. Qd3 {[%clk 0:02:27.9]} 13... O-O {[%clk
0:02:50.7]} 14. a3 {[%clk 0:02:26]} 14... Qb6 {[%clk 0:02:28.3]} 15. b4 {[%clk
0:02:18.1]} 15... Be7 {[%clk 0:02:28.3]} 16. Nc3 {[%clk 0:02:12.7]} 16... Rfd8
{[%clk 0:02:23.4]} 17. Rac1 {[%clk 0:02:11.5]} 17... Ne5 {[%clk 0:02:17.2]} 18.
Qb1 {[%clk 0:01:51.1]} 18... Nc4 {[%clk 0:02:07.2]} 19. Qa2 {[%clk 0:01:44.7]}
19... Nh5 {[%clk 0:01:34.5]} 20. Ne5 {[%clk 0:01:07.1]} 20... Bxg2 {[%clk
0:01:27.3]} 21. Kxg2 {[%clk 0:01:08]} 21... Nxf4+ {[%clk 0:01:17.9]} 22. gxf4
{[%clk 0:01:08.9]} 22... Nxe5 {[%clk 0:01:12.9]} 23. fxe5 {[%clk 0:01:08.7]}
23... Qd4 {[%clk 0:01:13.3]} 24. e3 {[%clk 0:00:50.2]} 24... Qg4+ {[%clk
0:01:01.2]} 25. Kh1 {[%clk 0:00:49.5]} 25... Qf3+ {[%clk 0:01:01.2]} 26. Kg1
{[%clk 0:00:50]} 26... Rc4 {[%clk 0:01:01.3]} 27. Ne2 {[%clk 0:00:50.3]} 27...
Rg4+ {[%clk 0:00:46.4]} 28. Ng3 {[%clk 0:00:49.6]} 28... h5 {[%clk 0:00:46.6]}
29. Rc7 {[%clk 0:00:39.3]} 29... h4 {[%clk 0:00:44.2]} 30. Rxe7 {[%clk
0:00:39.2]} 30... h3 {[%clk 0:00:43.9]} 31. Qd5 {[%clk 0:00:20.3]} 31... exd5
{[%clk 0:00:40.5]} 0-1

[Event "*** SCC Grand Prix: Titled Tuesday Blitz"]
[Site "Chess.com"]
[Date "2020.06.09"]
[Round "5"]
[White "attack2mateU"]
[Black "IriBu"]
[Result "1-0"]
[WhiteElo "2714"]
[BlackElo "2529"]
[TimeControl "180+1"]
[EndTime "9:55:52 PDT"]
[Termination "attack2mateU won by resignation"]

1. e4 {[%clk 0:03:00.9]} 1... Nf6 {[%clk 0:02:57.2]} 2. e5 {[%clk 0:03:00]} 2...
Nd5 {[%clk 0:02:56.7]} 3. d4 {[%clk 0:02:59.7]} 3... d6 {[%clk 0:02:56.5]} 4.
Nf3 {[%clk 0:03:00.1]} 4... Bg4 {[%clk 0:02:55.5]} 5. Be2 {[%clk 0:02:44.4]}
5... c6 {[%clk 0:02:54.4]} 6. O-O {[%clk 0:02:41.7]} 6... Bxf3 {[%clk
0:02:53.8]} 7. Bxf3 {[%clk 0:02:41.7]} 7... dxe5 {[%clk 0:02:53.8]} 8. dxe5
{[%clk 0:02:42.6]} 8... e6 {[%clk 0:02:54]} 9. Nd2 {[%clk 0:02:23.6]} 9... Nd7
{[%clk 0:02:46.5]} 10. Re1 {[%clk 0:02:22.8]} 10... Qc7 {[%clk 0:02:43.9]} 11.
Qe2 {[%clk 0:02:23.3]} 11... Ne7 {[%clk 0:02:39.4]} 12. Nc4 {[%clk 0:02:16.9]}
12... Ng6 {[%clk 0:02:39.1]} 13. a4 {[%clk 0:02:15.8]} 13... Bc5 {[%clk
0:02:25.4]} 14. g3 {[%clk 0:02:13.4]} 14... a5 {[%clk 0:02:13.2]} 15. h4 {[%clk
0:02:10.6]} 15... h6 {[%clk 0:02:06.8]} 16. Bh5 {[%clk 0:01:34.7]} 16... Ne7
{[%clk 0:01:47.6]} 17. Nd6+ {[%clk 0:00:50.4]} 17... Bxd6 {[%clk 0:01:43.2]} 18.
exd6 {[%clk 0:00:51.3]} 18... Qxd6 {[%clk 0:01:43.5]} 19. Bf4 {[%clk 0:00:51]}
19... e5 {[%clk 0:01:02.3]} 20. Rad1 {[%clk 0:00:50.2]} 20... Qe6 {[%clk
0:00:52.1]} 21. Bxe5 {[%clk 0:00:36.2]} 21... Kf8 {[%clk 0:00:22.1]} 22. Bd6
{[%clk 0:00:29.3]} 22... Qxe2 {[%clk 0:00:18.2]} 23. Rxe2 {[%clk 0:00:28.3]}
23... Re8 {[%clk 0:00:17.8]} 24. Rde1 {[%clk 0:00:28.8]} 24... g6 {[%clk
0:00:17.7]} 25. Rxe7 {[%clk 0:00:26.5]} 25... Rxe7 {[%clk 0:00:17.6]} 26. Rxe7
{[%clk 0:00:27.1]} 26... gxh5 {[%clk 0:00:17.5]} 27. Rxd7+ {[%clk 0:00:26.8]}
27... Kg7 {[%clk 0:00:18]} 28. Be5+ {[%clk 0:00:27.3]} 28... Kg6 {[%clk
0:00:17.7]} 29. Bxh8 {[%clk 0:00:27.8]} 1-0